bitfinex-derivatives/quotes_ETHF0:USTF0_20251012
["timestamp","ask_amount","ask_price","bid_price","bid_amount"]
[1760256576874,4.32630676,3830.5,3830.4,0.8123]
[1760256577974,4.46000676,3830.5,3830.4,0.8123]
[1760256578869,0.428,3830.2,3830.1,0.81233]
[1760256579075,0.428,3830.2,3829.5,1.31732]
[1760256579076,1.11850676,3830.2,3829.5,0.1433]
[1760256579380,0.4596,3829.3,3829.2,0.46964]
[1760256579771,0.4596,3829.3,3829.2,0.69104]
[1760256580071,1.15046869,3829.3,3829.2,0.69104]
[1760256580772,0.4595,3829.9,3829.8,0.46957]
[1760256581081,0.4595,3829.2,3829.1,1.27506]
[1760256585078,0.4595,3829.2,3829.1,1.04826]
[1760256585274,0.4595,3829.2,3828.4,5.55975023]
[1760256585275,0.4595,3829.2,3828.8,0.3421]
[1760256585476,1.3910554,3829.0,3828.9,0.81178]
[1760256585773,3.6651,3829.0,3828.9,1.28338]
[1760256592673,4.35304334,3829.0,3828.9,1.28338]
[1760256594582,4.50124334,3829.0,3828.6,0.46972]
[1760256594884,0.6796,3828.5,3828.4,0.00327023]
[1760256595178,4.57534334,3828.5,3828.4,0.00327023]
[1760256595581,4.50124334,3828.5,3828.4,0.00327023]
[1760256595780,4.50124334,3828.5,3828.4,0.57717023]
[1760256595981,3.89574334,3828.5,3828.4,1.28671023]
[1760256596184,4.28297,3829.0,3828.9,0.3421]
[1760256596485,4.97055375,3829.0,3828.9,0.81178]
[1760256596687,4.50088375,3829.0,3828.9,0.81178]
[1760256597377,4.97055375,3829.0,3828.9,0.81178]
[1760256597585,4.35268375,3829.0,3828.9,1.28338]
[1760256597774,1.14488375,3829.0,3828.9,1.28338]
[1760256598171,0.2371,3829.0,3828.9,1.29662434]
[1760256598383,3.2078,3829.5,3829.4,1.28332]
[1760256598575,3.4449,3830.0,3829.9,0.4716]
[1760256598775,4.35273346,3830.0,3829.9,0.8137]
[1760256598980,4.35273346,3830.0,3829.9,1.28326]
[1760256599183,4.50093346,3830.0,3829.9,0.82490434]
[1760256599383,1.29313346,3830.0,3829.9,0.82490434]
[1760256599575,4.50093346,3830.0,3829.9,0.82490434]
[1760256600079,4.35273346,3830.0,3829.9,1.05670434]
[1760256600279,3.4449,3830.4,3830.3,0.46951]
[1760256600477,3.6651,3830.4,3830.3,1.28321]
[1760256600678,3.6651,3830.4,3829.9,0.01324434]
[1760256600679,0.6055,3830.0,3829.9,0.01324434]
[1760256600876,4.50128025,3830.0,3829.9,0.01324434]
[1760256601080,0.6055,3829.3,3829.2,0.3421]
[1760256601385,0.2371,3829.6,3829.5,1.42101]
[1760256601584,0.4573,3829.6,3829.5,1.42101]
[1760256602085,3.6651,3830.0,3829.9,0.81166]
[1760256602284,4.353323,3830.0,3829.9,0.81166]
[1760256602586,4.501523,3830.0,3829.9,0.81166]
[1760256603179,4.501523,3830.0,3829.9,0.46956]
[1760256603781,4.971073,3830.0,3829.9,0.46956]
[1760256604384,4.971073,3830.0,3829.9,0.81166]
[1760256605184,0.4573,3829.6,3829.5,0.94941]
[1760256605388,0.4573,3829.6,3829.5,1.18121]
[1760256605789,0.4573,3829.6,3829.5,1.42101]
[1760256606088,4.3786554,3830.4,3830.3,0.70131]
[1760256606285,4.13442428,3830.4,3830.3,1.28321]
[1760256606483,0.00264607,3830.7,3830.6,1.28317]
[1760256607386,0.00264607,3830.7,3830.6,6.28317]
[1760256609483,0.00264607,3830.7,3830.6,1.28317]
[1760256612393,0.00264607,3830.7,3830.6,6.28317]
[1760256618798,3.4444,3831.7,3831.6,0.4492]
[1760256619093,3.4444,3831.7,3831.6,1.24825]
[1760256619295,3.6714,3831.7,3831.6,1.24825]
[1760256619485,3.2078,3831.7,3831.6,1.24825]
[1760256619686,3.2078,3832.1,3832.0,1.3851]
[1760256619896,3.44660117,3832.1,3832.0,1.38808406]
[1760256620094,3.21000117,3832.1,3832.0,1.38808406]
[1760256623193,0.00220117,3832.1,3832.0,1.38808406]
[1760256625092,3.2078,3832.9,3832.8,0.4692]
[1760256625093,3.4444,3832.9,3832.8,0.4692]
[1760256625293,0.2366,3832.9,3832.8,1.2481]
[1760256625489,0.4636,3833.2,3833.1,1.24806]
[1760256626196,0.23988319,3833.2,3833.1,1.24806]
[1760256626388,0.00328319,3833.2,3833.1,1.24806]
[1760256627297,0.4636,3834.2,3834.1,0.68974]
[1760256627502,0.4636,3834.2,3834.1,1.24794]
[1760256628315,0.4636,3834.2,3834.1,0.5504]
[1760256628316,0.93497969,3834.2,3834.1,0.5504]
[1760256628508,0.4636,3833.6,3833.5,1.15642]
[1760256628811,5.00234969,3834.2,3833.5,1.15642]
[1760256628812,0.2366,3833.9,3833.8,1.24798]
[1760256629011,3.4444,3834.1,3834.0,0.5861]
[1760256629219,3.4444,3834.1,3834.0,0.9158]
[1760256629412,3.91344,3834.1,3834.0,1.38486]
[1760256630219,0.00234969,3834.2,3834.0,1.38486]
[1760256630220,0.00234969,3834.2,3834.1,1.24794]
[1760256631018,0.47137969,3834.2,3834.1,1.24794]
[1760256631516,0.47137969,3834.2,3834.1,0.7789]
[1760256631713,0.70797969,3834.2,3834.1,0.7789]
[1760256632213,0.93497969,3834.2,3834.1,0.5504]
[1760256632408,0.2366,3833.9,3833.8,1.24798]
[1760256632612,3.2078,3834.0,3833.9,1.24797]
[1760256632811,0.47137969,3834.2,3834.1,0.46904]
[1760256633017,0.70797969,3834.2,3834.1,1.24794]
[1760256633219,0.00234969,3834.2,3834.1,1.24794]
[1760256633716,3.4444,3835.2,3835.1,0.7789]
[1760256634020,3.2078,3835.2,3835.1,1.24782]
[1760256634616,3.2104472,3835.2,3835.1,1.25098074]
[1760256636522,4.2908572,3835.2,3835.1,0.33286074]
[1760256636725,3.2104472,3835.2,3835.1,0.78206074]
[1760256637020,3.2104472,3835.2,3835.1,1.25098074]
[1760256640022,40.8,3836.0,3835.9,0.46882]
[1760256640222,5.91700611,3836.6,3836.5,0.7178]
[1760256640422,6.5933029,3836.6,3836.5,0.9518]
[1760256640721,5.91700611,3836.6,3836.5,0.9518]
[1760256640922,5.91700611,3836.6,3836.5,0.4854]
[1760256641220,5.91975271,3836.6,3836.5,0.4854]
[1760256641425,3.6766466,3836.6,3836.5,0.4854]
[1760256641827,3.6766466,3836.6,3836.5,0.3492]
[1760256641828,3.8223466,3836.6,3836.5,0.3492]
[1760256642124,4.48847729,3836.6,3836.5,0.3492]
[1760256643421,4.34277729,3836.6,3836.5,0.7215]
[1760256643621,3.6766466,3836.6,3836.5,0.9456]
[1760256645328,3.6766466,3836.6,3836.5,0.7215]
[1760256645528,4.34267849,3836.6,3836.5,0.7215]
[1760256645825,0.2241,3836.2,3836.1,0.3391]
[1760256646027,0.4601,3836.2,3836.1,0.5763]
[1760256646430,0.4601,3836.2,3836.1,0.8004]
[1760256647125,0.4601,3835.9,3835.7,0.3391]
[1760256647331,0.4601,3835.7,3835.6,0.3391]
[1760256647524,0.4601,3835.7,3835.6,0.5763]
[1760256647720,0.236,3835.7,3835.6,0.8004]
[1760256648027,3.2078,3835.8,3835.7,1.26925]
[1760256648529,3.4438,3835.8,3835.7,1.26925]
[1760256648828,3.2078,3836.2,3836.1,0.46879]
[1760256649131,4.48243347,3836.2,3836.1,0.80789]
[1760256649430,45.13493347,3836.2,3836.1,0.80789]
[1760256649630,45.13493347,3836.2,3836.1,1.04509]
[1760256650031,45.13493347,3836.2,3836.1,1.26919]
[1760256650325,4.33493347,3836.2,3836.1,1.26919]
[1760256650722,4.11083347,3836.2,3836.1,1.26919]
[1760256651927,4.80372347,3836.2,3836.1,0.8004]
[1760256652126,1.0764,3836.1,3836.0,0.4742]
[1760256652322,1.59593347,3836.1,3836.0,0.7114]
[1760256652628,1.12713347,3836.1,3836.0,1.40431]
[1760256653330,1.59593347,3836.1,3836.0,1.40431]
[1760256653532,1.12713347,3836.1,3836.0,1.40431]
[1760256653733,0.90303347,3836.1,3836.0,1.40431]
[1760256654730,0.236,3835.6,3835.5,0.4753]
[1760256655034,3.2078,3836.2,3836.1,0.8079]
[1760256655328,3.87698596,3836.2,3836.1,1.2692]
[1760256656631,3.03079358,3836.2,3836.1,6.2692]
[1760256658133,3.2105466,3836.6,3836.5,1.40425]
[1760256658432,3.87705857,3836.6,3836.5,1.40425]
[1760256661930,0.9337554,3837.7,3837.4,0.8004]
[1760256662127,0.9315,3837.5,3837.4,1.26903]
[1760256662324,1.59864397,3837.5,3837.4,0.92993]
[1760256662530,1.46094397,3837.5,3837.4,1.26903]
[1760256662730,0.90914397,3837.5,3837.4,1.26903]
[1760256662926,0.91134641,3837.5,3837.4,1.26903]
[1760256663128,0.66934641,3837.5,3837.4,1.26903]
[1760256663330,0.5697,3838.3,3838.2,0.2372]
[1760256663538,0.7938,3838.1,3838.0,0.92986]
[1760256663727,0.9337554,3838.5,3838.4,0.4613]
[1760256663926,0.9337554,3838.7,3838.6,0.46849]
[1760256664131,0.5697,3838.7,3838.6,1.26889]
[1760256664344,0.57238432,3838.7,3838.6,1.27081967]
[1760256664633,0.79648432,3838.7,3838.6,0.00192967]
[1760256664833,0.79648432,3838.7,3836.2,2.3439]
[1760256664834,0.3797,3837.5,3837.4,3.67644]
[1760256665030,0.7938,3837.4,3837.3,0.46864]
[1760256665231,0.4661,3836.8,3836.7,1.04503]
[1760256665428,0.7938,3836.8,3836.5,0.46874]
[1760256665633,0.7938,3836.6,3836.5,0.70594]
[1760256665842,0.7938,3836.6,3836.5,1.26914]
[1760256666042,0.7938,3836.6,3836.5,1.27197309]
[1760256666333,0.7938,3836.6,3836.5,0.93287309]
[1760256667439,0.7938,3836.6,3836.5,0.70877309]
[1760256668638,0.1377,3836.0,3835.4,1.1722]
[1760256668942,0.7938,3835.9,3835.4,0.3391]
[1760256669141,0.3277,3835.8,3835.7,0.46884]
[1760256669330,0.7938,3835.8,3835.7,0.70604]
[1760256669534,0.7938,3835.8,3835.7,1.26924]
[1760256669739,0.81246724,3835.8,3835.7,0.02893695]
[1760256670147,0.81246724,3835.8,3835.7,0.05536687]
[1760256670439,0.81246724,3835.8,3835.7,0.00250703]
[1760256670641,0.81246724,3835.8,3835.7,0.08179679]
[1760256671539,0.81246724,3835.8,3835.7,0.10822671]
[1760256671939,0.81246724,3835.8,3835.7,0.12357918]
[1760256672140,0.81246724,3835.8,3835.7,0.34467918]
[1760256672337,5.81246724,3835.8,3835.7,0.12357918]
[1760256672738,0.2396,3834.9,3834.8,0.2211]
[1760256672932,0.8103,3834.8,3834.7,0.69007]
[1760256673140,0.3286,3835.2,3834.7,0.7974]
[1760256673337,0.5682,3835.2,3835.1,0.7974]
[1760256673538,0.8103,3835.2,3835.1,0.7974]
[1760256673838,0.8103,3835.2,3835.1,0.47275554]
[1760256674038,0.8103,3835.2,3835.1,0.24075554]
[1760256674235,0.8103,3835.2,3835.1,0.03693769]
[1760256674636,0.8103,3835.2,3835.1,0.05421849]
[1760256675048,0.8103,3835.2,3835.1,0.07149929]
[1760256675246,1.46372693,3835.2,3835.1,0.07149929]
[1760256675444,1.46372693,3835.2,3835.1,0.0829387]
[1760256676143,0.8103,3835.2,3835.1,0.3040387]
[1760256677951,0.8103,3835.2,3835.1,0.0829387]
[1760256679947,0.8103,3835.2,3835.1,0.5518587]
[1760256682748,6.27921,3835.2,3835.1,0.0829387]
[1760256682943,1.27921,3835.2,3835.1,0.0829387]
[1760256683146,0.8103,3835.2,3835.1,0.7729587]
[1760256684155,9.0181,3835.2,3835.1,0.0829387]
[1760256684351,4.0181,3835.2,3835.1,0.0829387]
[1760256684652,4.0181,3835.2,3835.1,0.5518587]
[1760256684848,4.0181,3835.2,3835.1,0.7729587]
[1760256684849,0.8103,3835.2,3835.1,0.7729587]
[1760256685242,0.8103,3835.2,3835.1,0.5518587]
[1760256685549,0.8103,3835.2,3835.1,0.7729587]
[1760256686652,0.3286,3835.2,3835.1,1.3492587]
[1760256686849,0.5682,3835.2,3835.1,1.3492587]
[1760256687054,0.8103,3835.2,3835.1,1.3492587]
[1760256687254,0.8103,3835.2,3835.1,1.0049587]
[1760256687952,0.3856,3835.5,3835.4,0.68998]
[1760256688255,0.6252,3835.5,3835.4,0.92198]
[1760256688458,0.9538,3835.5,3835.4,0.92198]
[1760256688653,0.9538,3835.5,3835.4,0.54944531]
[1760256688853,9.63047,3835.5,3835.4,0.08056531]
[1760256689256,50.43047,3835.5,3835.4,0.08056531]
[1760256689657,45.43047,3835.5,3835.4,0.54944531]
[1760256690660,45.43047,3835.5,3835.4,0.08056531]
[1760256694763,44.9616,3835.5,3835.4,0.54944531]
[1760256695465,0.9538,3835.5,3835.4,1.00254531]
[1760256698269,0.9538,3835.5,3835.4,1.34684531]
[1760256698968,0.9538,3835.5,3835.4,1.00254531]
[1760256701773,0.9538,3835.5,3835.4,1.36014531]
[1760256703276,0.9538,3835.5,3835.4,1.00254531]
[1760256704872,4.1616,3835.5,3835.4,0.54944531]
[1760256705068,0.9538,3835.5,3835.4,0.77584531]
[1760256706877,0.9538,3835.5,3835.4,0.54944531]
[1760256709077,0.9538,3835.5,3835.4,0.08056531]
[1760256709273,4.1616,3835.5,3835.4,0.54944531]
[1760256709675,4.1616,3835.5,3835.4,0.08056531]
[1760256709876,4.1616,3835.5,3835.4,0.54944531]
[1760256710179,4.1616,3835.5,3835.4,0.08056531]
[1760256710373,4.63047,3835.5,3835.4,0.08056531]
[1760256710577,10.29470606,3835.5,3835.4,0.08056531]
[1760256717086,5.29470606,3835.5,3835.4,0.08056531]
[1760256717982,0.8171,3834.4,3833.8,3.5478]
[1760256718187,4.0249,3834.4,3834.3,0.46902]
[1760256718386,44.467,3834.4,3834.2,0.46903]
[1760256718581,0.8171,3834.3,3834.2,0.46903]
[1760256718985,0.8171,3834.3,3834.2,0.47210365]
[1760256719186,1.28612,3834.3,3834.2,0.00307365]
[1760256719387,42.08612,3834.3,3834.2,0.00307365]
[1760256719588,41.6171,3834.3,3834.2,0.47210365]
[1760256720884,41.6171,3834.3,3834.2,0.93280365]
[1760256721085,0.2217,3834.3,3834.2,1.27280365]
[1760256721285,0.8171,3834.3,3834.2,0.47210365]
[1760256721489,4.0249,3834.3,3834.2,0.47210365]
[1760256722287,0.8171,3834.3,3834.2,0.47210365]
[1760256726996,0.8171,3834.3,3834.2,0.69850365]
[1760256728403,0.8171,3834.3,3834.2,1.03850365]
[1760256729702,0.8171,3834.3,3834.2,0.69850365]
[1760256730096,0.8171,3834.3,3834.2,0.47210365]
[1760256730997,0.8171,3834.3,3834.2,0.70980365]
[1760256731197,0.8171,3834.3,3834.2,1.29910365]
[1760256731398,0.8171,3834.3,3834.2,0.70980365]
[1760256731593,0.8171,3834.3,3834.2,0.47210365]
[1760256733001,0.8171,3834.3,3834.2,1.29910365]
[1760256733498,0.8171,3834.3,3834.2,0.93880365]
[1760256733700,0.8171,3834.3,3834.2,1.29910365]
[1760256734896,0.8171,3834.3,3834.2,0.93880365]
[1760256735298,0.8171,3834.3,3834.2,0.47210365]
[1760256736905,0.611,3835.0,3834.9,0.70665]
[1760256737108,0.611,3835.0,3834.9,1.29595]
[1760256737109,0.806,3835.0,3834.9,1.29595]
[1760256738903,0.5661,3835.0,3834.9,1.29595]
[1760256739506,0.806,3835.0,3834.9,1.29595]
[1760256739994,0.806,3835.0,3834.9,0.70665]
[1760256739995,0.9374,3835.0,3834.9,0.70665]
[1760256740196,0.806,3834.6,3834.5,0.46899]
[1760256740603,0.806,3834.6,3834.5,0.70669]
[1760256741106,1.4064,3834.5,3834.4,0.46901]
[1760256741608,42.2064,3834.5,3834.4,0.46901]
[1760256741809,41.7374,3834.5,3834.4,0.46901]
[1760256744115,42.20639,3834.5,3834.4,0.46901]
[1760256744314,41.7374,3834.5,3834.4,0.46901]
[1760256745205,42.20639,3834.5,3834.2,0.00307365]
[1760256745611,41.87729,3834.5,3834.3,0.46901]
[1760256745810,0.806,3834.4,3834.3,0.46901]
[1760256746311,0.806,3834.3,3834.2,0.47210365]
[1760256746506,4.0138,3834.3,3834.2,0.47210365]
[1760256747210,4.0138,3834.3,3834.2,0.70980365]
[1760256747408,4.0138,3834.3,3834.2,0.47210365]
[1760256749816,4.48282,3834.3,3834.2,0.47210365]
[1760256750311,4.48282,3834.3,3834.2,0.00307365]
[1760256750918,5.15734568,3834.3,3834.2,0.00307365]
[1760256751117,5.15734568,3834.3,3834.2,0.47210365]
[1760256751506,5.15734568,3834.3,3834.2,0.00307365]
[1760256753716,0.806,3833.4,3833.3,0.46914]
[1760256754417,0.806,3833.4,3833.3,0.49869792]
[1760256754621,0.806,3833.4,3833.3,0.84492656]
[1760256755113,0.237,3833.4,3833.3,1.67192656]
[1760256755319,0.806,3833.4,3833.3,1.67192656]
[1760256757818,0.806,3833.4,3833.3,1.31162656]
[1760256758520,4.0138,3833.4,3833.3,0.84492656]
[1760256758712,4.48293,3833.4,3833.3,0.84492656]
[1760256758914,44.8138,3833.4,3833.3,0.84492656]
[1760256759418,45.28293,3833.4,3833.3,0.37578656]
[1760256759816,50.95655672,3833.4,3833.3,0.37578656]
[1760256760122,1.28799,3832.9,3832.8,0.02609059]
[1760256760524,1.28799,3832.9,3832.8,0.49529059]
[1760256761022,1.29053993,3832.9,3832.8,0.49722757]
[1760256761724,0.82134993,3832.9,3832.8,0.49722757]
[1760256762327,0.82134993,3832.9,3832.8,1.30702757]
[1760256762823,0.82134993,3832.9,3832.8,0.95402757]
[1760256763031,0.82134993,3832.9,3832.8,0.72312757]
[1760256763933,0.82134993,3832.9,3832.8,0.49722757]
[1760256765139,0.82134993,3832.9,3832.8,0.72312757]
[1760256766334,0.82134993,3832.9,3832.8,1.30702757]
[1760256766527,0.83164993,3832.9,3832.8,1.30702757]
[1760256767134,0.83164993,3832.9,3832.8,0.95402757]
[1760256767329,0.83164993,3832.9,3832.8,0.49722757]
[1760256767836,0.83164993,3832.9,3832.8,0.72312757]
[1760256768030,0.83164993,3832.9,3832.8,1.30702757]
[1760256770336,0.83164993,3832.9,3832.8,0.49722757]
[1760256772344,0.59644993,3832.9,3832.8,1.30702757]
[1760256772537,0.83164993,3832.9,3832.8,1.30702757]
[1760256772736,0.83164993,3832.9,3832.8,0.95402757]
[1760256772932,0.83164993,3832.9,3832.8,0.02802757]
[1760256773141,0.2313,3832.0,3831.9,3.2078]
[1760256773338,0.9441,3832.0,3831.9,1.04821]
[1760256773941,0.9441,3832.0,3831.9,1.27911]
[1760256774344,0.9441,3832.0,3831.9,1.28206882]
[1760256776945,0.8065,3832.0,3831.9,1.28206882]
[1760256777440,4.62115,3832.5,3832.4,1.27905]
[1760256777635,4.62115,3832.5,3832.4,0.92605]
[1760256777836,4.62115,3832.5,3832.4,0.46925]
[1760256778331,4.1519,3832.5,3832.4,0.46925]
[1760256778640,4.17905079,3832.5,3832.4,0.46925]
[1760256780037,0.97125079,3832.5,3832.4,1.27905]
[1760256780246,0.97125079,3832.5,3832.4,0.69515]
[1760256783339,0.97125079,3832.5,3832.4,1.27905]
[1760256783534,0.83365079,3832.5,3832.4,1.27905]
[1760256783742,0.59845079,3832.5,3832.4,1.27905]
[1760256784245,0.83365079,3832.5,3832.4,1.27905]
[1760256784749,0.97125079,3832.5,3832.4,1.27905]
[1760256785444,0.83365079,3832.5,3832.4,1.27905]
[1760256785645,0.02715079,3832.5,3832.4,1.27905]
[1760256786144,0.23384993,3832.9,3832.8,0.4692]
[1760256786441,3.2078,3833.7,3832.5,1.1731]
[1760256786442,0.8065,3833.9,3833.8,0.46908]
[1760256786637,1.48058551,3833.9,3833.8,0.46908]
[1760256786839,42.28058551,3833.9,3833.8,0.46908]
[1760256787354,42.28263896,3833.9,3833.8,0.46908]
[1760256787538,42.28263896,3833.9,3833.8,0.69498]
[1760256788240,41.60855345,3833.9,3833.8,0.69498]
[1760256789644,41.60855345,3833.9,3833.8,0.46908]
[1760256789847,42.07762345,3833.9,3833.6,0.46909]
[1760256790146,0.8141,3833.7,3833.6,0.46909]
[1760256790645,0.8141,3833.7,3832.9,3.2078]
[1760256790646,0.9463,3833.0,3832.9,0.46919]
[1760256790846,0.9463,3833.0,3832.9,1.04939]
[1760256791345,0.9463,3833.0,3832.9,4.25719]
[1760256792047,0.9463,3833.0,3832.9,0.69139]
[1760256796650,0.9463,3833.0,3832.9,1.04939]
[1760256797152,1.41548,3833.0,3832.9,1.04939]
[1760256797352,1.41548,3833.0,3832.9,0.69139]
[1760256798451,1.41548,3833.0,3832.9,1.04939]
[1760256798852,0.9463,3833.0,3832.9,1.28249]
[1760256799156,0.8141,3833.0,3832.9,1.28249]
[1760256799454,1.28323,3833.4,3833.3,1.28244]
[1760256800151,0.8141,3833.4,3833.3,1.28244]
[1760256803159,1.28323,3833.4,3833.3,0.69134]
[1760256804759,0.8141,3833.4,3833.3,0.69134]
[1760256805059,0.8141,3833.4,3833.3,0.46914]
[1760256806957,0.3426,3832.9,3832.7,3.2078]
[1760256807161,0.8141,3832.7,3832.6,0.69143]
[1760256807552,3.5504,3833.0,3832.9,1.28249]
[1760256807757,0.5804,3833.0,3832.9,1.28249]
[1760256808262,0.8141,3833.0,3832.9,1.28249]
[1760256809965,0.9463,3833.0,3832.9,1.28249]
[1760256810563,0.9463,3833.5,3833.4,1.28243]
[1760256810760,0.8141,3833.5,3833.4,1.28243]
[1760256811262,0.2378,3833.5,3833.4,1.28243]
[1760256811462,0.8141,3833.8,3833.7,1.28239]
[1760256814264,0.8141,3833.8,3833.7,0.92439]
[1760256814763,1.28318,3833.8,3833.7,0.46909]
[1760256815364,0.00205345,3833.9,3833.8,0.69128]
[1760256815565,0.8141,3834.5,3834.4,0.4553]
[1760256815869,0.8141,3834.5,3834.4,1.28231]
[1760256816071,0.5804,3834.5,3834.4,1.28231]
[1760256816766,0.81669092,3834.5,3834.4,1.28231]
[1760256817163,0.58299092,3834.5,3834.4,1.28231]
[1760256817363,0.81669092,3834.5,3834.4,1.28231]
[1760256817561,0.94889092,3834.5,3834.4,1.28231]
[1760256819168,0.81669092,3834.5,3834.4,1.28231]
[1760256819666,0.95469092,3834.5,3834.4,1.28231]
[1760256820964,0.95469092,3834.5,3834.4,0.92431]
[1760256821364,0.95469092,3834.5,3834.4,0.46901]
[1760256821567,0.9448,3834.0,3833.9,0.46907]
[1760256821760,0.9448,3834.0,3833.9,0.70817]
[1760256821970,0.9448,3834.0,3833.9,1.04227]
[1760256822166,0.9448,3834.0,3833.5,0.1382]
[1760256822472,0.8367,3833.5,3833.4,4.47923]
[1760256822768,0.8367,3833.9,3833.8,1.27138]
[1760256823768,0.8367,3833.9,3833.8,0.70298]
[1760256824672,0.8367,3833.9,3833.8,1.27138]
[1760256825670,0.85189092,3834.5,3834.4,0.46901]
[1760256825871,0.62429092,3834.5,3834.4,1.27131]
[1760256826271,0.97729092,3834.5,3834.4,1.27131]
[1760256826771,0.97729092,3834.5,3834.4,0.46901]
[1760256828170,0.97729092,3834.5,3834.1,0.3341]
[1760256828372,0.8367,3833.9,3833.8,0.2339]
[1760256828677,0.8367,3833.9,3833.8,0.568]
[1760256828974,0.8367,3833.9,3833.8,0.8023]
[1760256829172,0.353,3833.9,3833.8,0.8023]
[1760256829372,0.353,3833.9,3833.8,1.27138]
[1760256829575,0.97729092,3834.5,3834.4,0.46901]
[1760256830578,0.97729092,3834.5,3834.4,1.03701]
[1760256831278,0.97729092,3834.5,3834.4,0.70291]
[1760256833279,0.97729092,3834.5,3834.4,0.46901]
[1760256833983,0.83929092,3834.5,3834.4,1.27131]
[1760256834187,0.00259092,3834.5,3834.4,1.27131]
[1760256836875,0.59789092,3834.5,3834.4,1.27131]
[1760256838584,0.83929092,3834.5,3834.4,1.27131]
[1760256839488,0.00259092,3834.5,3834.4,1.29198792]
[1760256839986,0.00259092,3834.5,3834.4,1.31266584]
[1760256840380,0.353,3835.3,3834.6,1.50656]
[1760256840678,1.45027,3835.5,3835.4,0.70278]
[1760256840875,1.45027,3835.5,3835.4,0.51023584]
[1760256841487,1.45301111,3835.5,3835.4,0.51275968]
[1760256841880,6.45301111,3835.5,3835.4,0.04387968]
[1760256842181,0.46893,3835.1,3834.3,1.50664]
[1760256842380,0.8367,3834.4,3834.3,0.46902]
[1760256842780,0.8367,3834.4,3834.3,0.70292]
[1760256842984,0.8367,3834.4,3834.3,1.27132]
[1760256843184,0.8367,3834.4,3834.3,1.2742398]
[1760256843581,0.8367,3834.4,3834.3,0.7058398]
[1760256844388,0.8367,3834.4,3834.3,1.0399398]
[1760256848791,0.8367,3834.4,3834.3,1.2742398]
[1760256852993,0.242,3834.5,3834.4,0.46901]
[1760256853195,0.827,3834.5,3834.4,0.91301]
[1760256853399,0.9642,3834.5,3834.4,0.91301]
[1760256854495,0.827,3834.5,3834.4,1.27401]
[1760256856296,0.9642,3834.5,3834.4,1.27401]
[1760256857896,0.9642,3834.5,3834.4,0.91301]
[1760256858891,0.9642,3834.5,3834.4,0.46901]
[1760256859584,1.29601,3834.4,3834.3,0.0029198]
[1760256859785,1.29601,3834.4,3833.4,1.17282]
[1760256859786,0.4773,3833.4,3833.3,0.46914]
[1760256860497,0.827,3833.4,3833.3,0.46914]
[1760256860698,0.827,3833.4,3833.3,0.47180995]
[1760256868007,0.5917,3833.4,3833.3,0.91580995]
[1760256868300,0.827,3833.4,3833.3,1.27680995]
[1760256872501,0.3514,3833.7,3833.3,9.48460995]
[1760256872707,0.1372,3834.5,3833.9,0.46907]
[1760256872708,0.9421,3834.0,3833.9,0.46907]
[1760256873906,0.9421,3834.0,3833.9,0.69217]
[1760256878815,0.9421,3834.0,3833.9,0.46907]
[1760256881113,1.41115,3834.0,3833.9,0.46907]
[1760256881911,0.9421,3834.0,3833.9,0.46907]
[1760256884423,1.41115,3834.0,3833.9,0.46907]
[1760256886220,0.9421,3834.0,3833.9,0.46907]
[1760256888521,1.41115,3834.0,3833.9,0.46907]
[1760256889221,2.08600057,3834.0,3833.9,0.46907]
[1760256889718,1.61695057,3834.0,3833.9,0.46907]
[1760256890424,2.08600057,3834.0,3833.9,0.46907]
[1760256890614,2.08600057,3834.0,3833.7,0.46909]
[1760256890615,1.27368,3833.8,3833.7,0.46909]
[1760256890814,0.8046,3833.8,3833.7,0.46909]
[1760256891308,0.8046,3833.8,3833.7,1.24409]
[1760256896728,0.8046,3833.8,3833.7,0.91249]
[1760256896926,0.8046,3833.8,3833.7,0.68739]
[1760256897423,0.8046,3833.8,3833.7,1.01899]
[1760256897824,0.8046,3833.8,3833.7,1.24409]
[1760256898219,3.2078,3834.2,3833.7,1.17273]
[1760256898534,0.4609,3834.3,3834.2,1.24403]
[1760256898819,0.8046,3834.3,3834.2,1.24403]
[1760256899019,1.47960444,3834.3,3834.2,1.24403]
[1760256899222,1.47960444,3834.3,3834.2,0.91243]
[1760256899719,1.47960444,3834.3,3834.2,1.24403]
[1760256899926,0.8046,3834.3,3834.2,1.24403]
[1760256900324,0.569,3834.3,3834.2,1.24403]
[1760256901224,0.8046,3834.3,3834.2,1.24403]
[1760256901821,0.3437,3834.3,3834.2,1.24403]
[1760256902021,3.5515,3834.6,3834.5,1.24399]
[1760256902325,3.7768,3834.6,3834.5,1.24399]
[1760256902825,4.0124,3834.6,3834.5,1.24399]
[1760256903526,0.8046,3834.6,3834.5,1.24399]
[1760256906028,0.8046,3834.6,3834.5,0.91239]
[1760256906326,0.8046,3834.6,3834.5,1.24399]
[1760256906725,0.8046,3834.6,3834.1,5.55298]
[1760256906726,0.4609,3834.6,3834.3,0.46901]
[1760256907026,0.4609,3834.4,3834.3,1.01891]
[1760256907222,2.25486076,3834.7,3834.6,0.46898]
[1760256907428,4.15774111,3835.5,3835.4,0.46888]
[1760256907622,4.15774111,3835.5,3835.4,0.68718]
[1760256908118,4.15774111,3835.5,3835.4,0.46888]
[1760256908925,0.3437,3835.4,3834.9,1.50395]
[1760256909121,4.28291111,3835.5,3834.9,1.50395]
[1760256909122,0.9472,3835.0,3834.9,1.24394]
[1760256909323,0.8046,3835.0,3834.9,1.24394]
[1760256909620,4.15774111,3835.5,3835.4,0.68718]
[1760256910622,0.94994111,3835.5,3835.4,0.68718]
[1760256911727,0.94994111,3835.5,3835.4,1.26158]
[1760256912031,0.34644111,3835.5,3835.4,1.26158]
[1760256912231,0.00274111,3835.5,3835.4,1.26158]
[1760256913825,0.22574111,3835.5,3835.4,1.26158]
[1760256914026,0.58104111,3835.5,3835.4,1.26158]
[1760256915235,0.00274111,3835.5,3835.4,1.26158]
[1760256917329,6.43787,3836.6,3835.4,1.26158]